fUSD/lending_fUSD_20240122
["ID","MTS","AMOUNT","RATE_DAILY","PERIOD"]
[312526175,1705942312453,-500.0,0.00056438,120]
[312526176,1705942312462,-1072.31,0.00056438,120]
[312526177,1705942312471,-500.0,0.00056438,120]
[312526178,1705942312484,-916.28,0.00056438,120]
[312526179,1705942312494,-500.0,0.00056438,120]
[312526180,1705942312503,-894.82,0.00056438,120]
[312526181,1705942312513,-500.0,0.00056438,120]
[312526182,1705942312523,-563.54,0.00056438,120]
[312526183,1705942312533,-984.92,0.00056438,120]
[312526184,1705942312544,-500.0,0.00056438,120]
[312526185,1705942312554,-2024.59,0.00056438,7]
[312526186,1705942312565,-500.0,0.00056438,120]
[312526187,1705942312575,-500.0,0.00056438,120]
[312526188,1705942312585,-518.92662044,0.00056438,120]
[312526189,1705942312595,-873.84,0.00056438,120]
[312526190,1705942312604,-500.0,0.00056438,120]
[312526191,1705942312614,-1503.79,0.00056438,120]
[312526192,1705942312624,-500.0,0.00056438,120]
[312526193,1705942312634,-500.0,0.00056438,120]
[312526194,1705942312645,-646.15,0.00056438,120]
[312526195,1705942312656,-781.35,0.00056438,120]
[312526196,1705942312666,-564.76,0.00056438,120]
[312526197,1705942312675,-1064.36,0.00056438,120]
[312526198,1705942312684,-519.13,0.00056438,120]
[312526199,1705942312695,-1095.74,0.00056438,120]
[312526200,1705942312704,-1291.13,0.00056438,120]
[312526201,1705942312714,-500.0,0.00056438,120]
[312526202,1705942312724,-712.79,0.00056438,120]
[312526203,1705942312734,-500.0,0.00056438,120]
[312526204,1705942312744,-736.14,0.00056438,120]
[312526205,1705942312754,-1311.07,0.00056438,120]
[312526206,1705942312764,-500.0,0.00056438,120]
[312526207,1705942312774,-500.0,0.00056438,120]
[312526208,1705942312783,-500.0,0.00056438,120]
[312526209,1705942312793,-500.0,0.00056438,120]
[312526210,1705942312803,-500.0,0.00056438,120]
[312526211,1705942312813,-997.27,0.00056438,120]
[312526212,1705942312822,-1000.0,0.00056438,7]
[312526213,1705942312832,-1180.26,0.00056438,30]
[312526214,1705942312841,-879.87,0.00056438,120]
[312526215,1705942312851,-500.0,0.00056438,120]
[312526216,1705942312869,-500.0,0.00056438,120]
[312526217,1705942312879,-500.0,0.00056438,120]
[312526218,1705942312888,-500.0,0.00056438,120]
[312526219,1705942312898,-1101.52,0.00056438,120]
[312526220,1705942312908,-1000.0,0.00056438,120]
[312526221,1705942312919,-500.0,0.00056438,120]
[312526222,1705942312928,-596.97,0.00056438,120]
[312526223,1705942312938,-500.0,0.00056438,120]
[312526224,1705942312947,-677.87,0.00056438,120]
[312526225,1705942312957,-500.0,0.00056438,30]
[312526226,1705942312966,-758.09,0.00056438,120]
[312526227,1705942312976,-500.0,0.00056438,120]
[312526228,1705942312986,-678.57,0.00056438,120]
[312526229,1705942312995,-500.0,0.00056438,7]
[312526230,1705942313004,-500.0,0.00056438,120]
[312526231,1705942313013,-764.95,0.00056438,120]
[312526232,1705942313022,-535.75,0.00056438,120]
[312526233,1705942313033,-1153.09,0.00056438,120]
[312526234,1705942313043,-768.51,0.00056438,120]
[312526235,1705942313053,-644.33946301,0.00056438,120]
[312526236,1705942313062,-1045.19,0.00056438,120]
[312526237,1705942313071,-500.0,0.00056438,120]
[312526238,1705942313081,-876.25,0.00056438,120]
[312526239,1705942313090,-552.31,0.00056438,120]
[312526240,1705942313099,-697.88,0.00056438,120]
[312526241,1705942313109,-500.0,0.00056438,120]
[312526242,1705942313118,-619.89,0.00056438,120]
[312526243,1705942313128,-746.34,0.00056438,120]
[312526244,1705942313137,-503.91,0.00056438,120]
[312526245,1705942313148,-770.55,0.00056438,120]
[312526246,1705942313157,-515.99,0.00056438,120]
[312526247,1705942313167,-533.69,0.00056438,120]
[312526248,1705942313177,-500.0,0.00056438,120]
[312526249,1705942313186,-1181.85,0.00056438,120]
[312526250,1705942313195,-500.0,0.00056438,120]
[312526251,1705942313205,-1727.31,0.00056438,120]
[312526252,1705942313214,-500.0,0.00056438,120]
[312526253,1705942313224,-500.0,0.00056438,120]
[312526254,1705942313233,-500.0,0.00056438,120]
[312526255,1705942313243,-953.83,0.00056438,120]
[312526256,1705942313253,-609.57,0.00056438,120]
[312526257,1705942313263,-500.0,0.00056438,120]
[312526258,1705942313272,-759.29,0.00056438,120]
[312526259,1705942313281,-517.57,0.00056438,120]
[312526260,1705942313291,-500.0,0.00056438,120]
[312526261,1705942313300,-500.0,0.00056438,120]
[312526262,1705942313310,-1765.42,0.00056438,120]
[312526263,1705942313320,-945.78,0.00056438,120]
[312526264,1705942313329,-563.49,0.00056438,120]
[312526265,1705942313338,-2780.15,0.00056438,120]
[312526266,1705942313348,-1143.05,0.00056438,120]
[312526267,1705942313356,-507.89878157,0.00056438,120]
[312526268,1705942313366,-739.81,0.00056438,120]
[312526269,1705942313376,-500.0,0.00056438,120]
[312526270,1705942313385,-630.92,0.00056438,120]
[312526271,1705942313395,-500.0,0.00056438,120]
[312526272,1705942313405,-1112.59,0.00056438,120]
[312526273,1705942313414,-6946.56,0.00056438,120]
[312526274,1705942313423,-779.09,0.00056438,120]
[312526275,1705942313432,-729.29,0.00056438,120]
[312526276,1705942313442,-3649.41,0.00056438,120]
[312526277,1705942313451,-500.0,0.00056438,120]
[312526278,1705942313460,-500.0,0.00056438,120]
[312526279,1705942313470,-500.0,0.00056438,120]
[312526280,1705942313480,-1830.13,0.00056438,120]
[312526281,1705942313490,-500.0,0.00056438,120]
[312526282,1705942313503,-8171.7,0.00056438,120]
[312526283,1705942313513,-598.39,0.00056438,120]
[312526284,1705942313523,-500.0,0.00056438,120]
[312526285,1705942313534,-885.03,0.00056438,120]
[312526286,1705942313544,-552.57,0.00056438,120]
[312526287,1705942313553,-500.0,0.00056438,120]
[312526288,1705942313562,-681.33,0.00056438,120]
[312526289,1705942313572,-2620.03,0.00056438,120]
[312526290,1705942313583,-542.86233071,0.00056438,120]
[312526291,1705942313593,-385.6,0.00056438,120]
[312526292,1705942313602,-500.0,0.00056438,120]
[312526293,1705942313611,-674.46,0.00056438,120]
[312526294,1705942313621,-580.85,0.00056438,120]
[312526295,1705942313630,-722.83,0.00056438,120]
[312526296,1705942313640,-1767.29,0.00056438,120]
[312526297,1705942313650,-500.0,0.00056438,120]
[312526298,1705942313659,-500.0,0.00056438,120]
[312526299,1705942313669,-717.86,0.00056438,120]
[312526300,1705942313678,-500.0,0.00056438,120]
[312526301,1705942313687,-1143.05,0.00056438,120]
[312526302,1705942313697,-500.0,0.00056438,120]
[312526303,1705942313707,-1133.33,0.00056438,120]
[312526304,1705942313717,-513.07989844,0.00056438,120]
[312526305,1705942313726,-500.0,0.00056438,120]
[312526306,1705942313736,-241.37249357,0.00056438,120]
[312526307,1705942313746,-540.86,0.00056438,120]
[312526308,1705942313757,-500.0,0.00056438,120]
[312526309,1705942313766,-500.0,0.00056438,120]
[312526310,1705942313776,-5682.89,0.00056438,120]
[312526311,1705942313786,-917.6,0.00056438,120]
[312526312,1705942313796,-610.88,0.00056438,120]
[312526313,1705942313805,-1451.88,0.00056438,120]
[312526314,1705942313814,-774.42,0.00056438,120]
[312526315,1705942313824,-638.56,0.00056438,120]
[312526316,1705942313834,-151.99737928,0.00056438,120]
[312526317,1705942313843,-2543.46,0.00056438,120]
[312526318,1705942313852,-2607.73,0.00056438,120]
[312526319,1705942313862,-745.28,0.00056438,120]
[312526320,1705942313871,-500.0,0.00056438,120]
[312526321,1705942313881,-820.5,0.00056438,120]
[312526322,1705942313890,-295.44400679,0.00056438,120]
[312526323,1705942313900,-1200.74,0.00056438,120]
[312526324,1705942313912,-1676.05,0.00056438,120]
[312526325,1705942313921,-3921.91,0.00056438,120]
[312526326,1705942313931,-1841.71,0.00056438,120]
[312526327,1705942313940,-500.0,0.00056438,120]
[312526328,1705942313950,-527.12049241,0.00056438,120]
[312526329,1705942313960,-1638.92,0.00056438,120]
[312526330,1705942313969,-500.0,0.00056438,120]
[312526331,1705942313978,-753.79,0.00056438,120]
[312526332,1705942313987,-983.65,0.00056438,120]
[312526333,1705942313997,-694.12,0.00056438,120]
[312526334,1705942314006,-760.03,0.00056438,120]
[312526335,1705942314016,-1023.91,0.00056438,120]
[312526336,1705942314025,-500.0,0.00056438,120]
[312526337,1705942314035,-1153.82,0.00056438,120]
[312526338,1705942314044,-895.96,0.00056438,120]
[312526339,1705942314053,-500.0,0.00056438,120]
[312526340,1705942314062,-500.0,0.00056438,120]
[312526341,1705942314072,-630.13,0.00056438,120]
[312526342,1705942314081,-500.0,0.00056438,120]
[312526343,1705942314092,-906.48,0.00056438,120]
[312526344,1705942314102,-500.0,0.00056438,120]
[312526345,1705942314112,-1028.29,0.00056438,120]
[312526346,1705942314121,-500.0,0.00056438,120]
[312526347,1705942314130,-649.02,0.00056438,120]
[312526348,1705942314139,-773.13,0.00056438,120]
[312526349,1705942314149,-500.0,0.00056438,120]
[312526350,1705942314159,-355.83152508,0.00056438,120]
[312526351,1705942314169,-768.01,0.00056438,120]
[312526352,1705942314179,-1504.11,0.00056438,120]
[312526353,1705942314190,-778.2,0.00056438,120]
[312526354,1705942314201,-1829.78,0.00056438,120]
[312526355,1705942314212,-500.0,0.00056438,120]
[312526356,1705942314223,-500.0,0.00056438,120]
[312526357,1705942314234,-543.66,0.00056438,120]
[312526358,1705942314244,-500.0,0.00056438,120]
[312526359,1705942314261,-950.19,0.00056438,120]
[312526360,1705942314274,-505.05,0.00056438,120]
[312526361,1705942314285,-1074.68,0.00056438,120]
[312526362,1705942314296,-500.0,0.00056438,120]
[312526363,1705942314307,-1213.81,0.00056438,120]
[312526364,1705942314533,-823.2,0.00056438,120]
[312526365,1705942314545,-500.0,0.00056438,120]
[312526366,1705942314556,-1115.17,0.00056438,120]
[312526367,1705942314569,-500.0,0.00056438,120]
[312526368,1705942314583,-856.62,0.00056438,120]
[312526369,1705942314595,-682.86,0.00056438,120]
[312526370,1705942314607,-500.0,0.00056438,120]
[312526371,1705942314618,-594.97,0.00056438,120]
[312526372,1705942314630,-1646.87,0.00056438,120]
[312526373,1705942314642,-500.0,0.00056438,120]
[312526374,1705942314654,-822.11,0.00056438,120]
[312526375,1705942314666,-828.1,0.00056438,120]
[312526376,1705942314680,-580.05,0.00056438,120]
[312526377,1705942314692,-500.0,0.00056438,120]
[312526378,1705942314703,-2595.41,0.00056438,120]
[312526379,1705942314716,-630.62,0.00056438,120]
[312526380,1705942314727,-500.0,0.00056438,120]
[312526381,1705942314739,-930.18,0.00056438,120]
[312526382,1705942314752,-1073.28,0.00056438,120]
[312526383,1705942314765,-742.05,0.00056438,120]
[312526384,1705942314778,-678.49,0.00056438,120]
[312526385,1705942314790,-500.0,0.00056438,120]
[312526386,1705942314801,-1590.69,0.00056438,120]
[312526387,1705942314813,-829.6,0.00056438,120]
[312526388,1705942314824,-617.27,0.00056438,120]
[312526389,1705942314836,-500.0,0.00056438,120]
[312526390,1705942314847,-815.78,0.00056438,120]
[312526391,1705942314858,-1543.05,0.00056438,120]
[312526392,1705942314869,-500.0,0.00056438,120]
[312526393,1705942314880,-1475.16,0.00056438,120]
[312526394,1705942314892,-714.16,0.00056438,120]
[312526395,1705942314918,-500.0,0.00056438,120]
[312526396,1705942314930,-1006.24,0.00056438,120]
[312526397,1705942314941,-758.37,0.00056438,120]
[312526398,1705942314953,-1423.08,0.00056438,120]
[312526399,1705942314964,-500.0,0.00056438,120]
[312526400,1705942314976,-765.85,0.00056438,120]
[312526401,1705942314988,-500.0,0.00056438,120]
[312526402,1705942315000,-500.0,0.00056438,120]
[312526403,1705942315011,-695.94,0.00056438,120]
[312526404,1705942315022,-810.81,0.00056438,120]
[312526405,1705942315034,-569.61,0.00056438,120]
[312526406,1705942315045,-500.0,0.00056438,120]
[312526407,1705942315056,-500.0,0.00056438,120]
[312526408,1705942315067,-2137.13,0.00056438,120]
[312526409,1705942315078,-500.0,0.00056438,120]
[312526410,1705942315088,-1195.99,0.00056438,120]
[312526411,1705942315099,-735.82,0.00056438,120]
[312526412,1705942315109,-1168.02,0.00056438,120]
[312526413,1705942315121,-675.18,0.00056438,120]
[312526414,1705942315131,-152.488592,0.00056438,120]
[312526415,1705942315143,-723.21,0.00056438,120]
[312526416,1705942315154,-1962.3,0.00056438,120]
[312526417,1705942315165,-4343.32,0.00056438,120]
[312526418,1705942315175,-500.0,0.00056438,120]
[312526419,1705942315185,-809.05,0.00056438,120]
[312526420,1705942315195,-604.97,0.00056438,120]
[312526421,1705942315205,-1467.22,0.00056438,120]
[312526422,1705942315215,-759.96,0.00056438,120]
[312526423,1705942315225,-646.29,0.00056438,120]
[312526424,1705942315234,-600.2,0.00056438,120]
[312526425,1705942315244,-500.0,0.00056438,120]
[312526426,1705942315254,-1223.32,0.00056438,120]
[312526427,1705942315264,-1336.46,0.00056438,120]
[312526428,1705942315274,-776.65,0.00056438,120]
[312526429,1705942315283,-1097.52,0.00056438,120]
[312526430,1705942315293,-500.0,0.00056438,120]
[312526431,1705942315303,-3479.79,0.00056438,120]
[312526432,1705942315313,-941.86,0.00056438,120]
[312526433,1705942315323,-6928.17,0.00056438,5]
[312526434,1705942315333,-500.0,0.00056438,120]
[312526435,1705942315343,-1530.05,0.00056438,120]
[312526436,1705942315353,-630.06,0.00056438,120]
[312526437,1705942315364,-500.0,0.00056438,120]
[312526438,1705942315374,-500.0,0.00056438,120]
[312526439,1705942315383,-500.0,0.00056438,120]
[312526440,1705942315394,-631.92,0.00056438,120]
[312526441,1705942315413,-581.13,0.00056438,120]
[312526442,1705942315423,-968.66,0.00056438,120]
[312526443,1705942315433,-729.77,0.00056438,120]
[312526444,1705942315442,-1034.47,0.00056438,120]
[312526445,1705942315452,-548.64,0.00056438,120]
[312526446,1705942315463,-500.0,0.00056438,120]
[312526447,1705942315473,-1002.03,0.00056438,120]
[312526448,1705942315485,-663.93,0.00056438,120]
[312526449,1705942315495,-659.04,0.00056438,120]
[312526450,1705942315507,-500.0,0.00056438,7]
[312526451,1705942315520,-500.0,0.00056438,120]
[312526452,1705942315530,-508.5,0.00056438,120]
[312526453,1705942315539,-500.0,0.00056438,120]
[312526454,1705942315550,-669.88,0.00056438,120]
[312526455,1705942315562,-500.0,0.00056438,120]
[312526456,1705942315572,-1260.2,0.00056438,120]
[312526457,1705942315582,-1310.32,0.00056438,120]
[312526458,1705942315594,-666.0,0.00056438,120]
[312526459,1705942315604,-1375.16,0.00056438,120]
[312526460,1705942315615,-500.0,0.00056438,120]
[312526461,1705942315626,-777.93,0.00056438,120]
[312526462,1705942315637,-500.0,0.00056438,120]
[312526463,1705942315647,-780.67,0.00056438,120]
[312526464,1705942315667,-500.0,0.00056438,120]
[312526465,1705942315678,-609.64,0.00056438,120]
[312526466,1705942315687,-952.88,0.00056438,120]
[312526467,1705942315697,-500.0,0.00056438,120]
[312526468,1705942315707,-1288.87,0.00056438,120]
[312526469,1705942315717,-614.46,0.00056438,120]
[312526470,1705942315726,-589.89,0.00056438,120]
[312526471,1705942315736,-500.0,0.00056438,120]
[312526472,1705942315746,-508.24,0.00056438,120]
[312526473,1705942315756,-1173.95,0.00056438,120]
[312526474,1705942315765,-1099.97,0.00056438,120]
[312526475,1705942315776,-891.26,0.00056438,120]
[312526476,1705942315786,-500.0,0.00056438,120]
[312526477,1705942315796,-1741.05,0.00056438,120]
[312526478,1705942315806,-869.66,0.00056438,120]
[312526479,1705942315817,-983.11,0.00056438,120]
[312526480,1705942315827,-588.97,0.00056438,120]
[312526481,1705942315837,-5629.53,0.00056438,120]
[312526482,1705942315847,-822.9,0.00056438,120]
[312526483,1705942315857,-500.0,0.00056438,120]
[312526484,1705942315867,-1258.02,0.00056438,120]
[312526485,1705942315877,-508.55,0.00056438,120]
[312526486,1705942315887,-639.75,0.00056438,120]
[312526487,1705942315897,-822.29,0.00056438,120]
[312526488,1705942315915,-1538.69,0.00056438,120]
[312526489,1705942315926,-870.0,0.00056438,120]
[312526490,1705942315935,-1693.8,0.00056438,120]
[312526491,1705942315946,-963.73,0.00056438,120]
[312526492,1705942315955,-500.0,0.00056438,120]
[312526493,1705942315965,-789.83,0.00056438,120]
[312526494,1705942315975,-1271.78,0.00056438,120]
[312526495,1705942315985,-500.0,0.00056438,120]
[312526496,1705942315996,-628.56,0.00056438,120]
[312526497,1705942316005,-500.0,0.00056438,120]
[312526498,1705942316016,-869.58,0.00056438,120]
[312526499,1705942316026,-870.17,0.00056438,120]
[312526500,1705942316036,-500.0,0.00056438,120]
[312526501,1705942316045,-599.89,0.00056438,120]
[312526502,1705942316054,-766.25,0.00056438,120]
[312526503,1705942316063,-500.0,0.00056438,120]
[312526504,1705942316072,-1159.8,0.00056438,120]
[312526505,1705942316081,-941.19,0.00056438,120]
[312526506,1705942316091,-500.0,0.00056438,120]
[312526507,1705942316101,-500.0,0.00056438,120]
[312526508,1705942316110,-658.14,0.00056438,120]
[312526509,1705942316120,-746.01,0.00056438,120]
[312526510,1705942316130,-944.11,0.00056438,120]
[312526511,1705942316139,-1125.33,0.00056438,120]
[312526512,1705942316148,-500.0,0.00056438,120]
[312526513,1705942316161,-898.57,0.00056438,120]
[312526514,1705942316170,-1108.3,0.00056438,120]
[312526515,1705942316180,-847.08,0.00056438,120]
[312526516,1705942316189,-561.47,0.00056438,120]
[312526517,1705942316199,-2189.22,0.00056438,120]
[312526518,1705942316207,-15010.01,0.00056438,120]
[312526519,1705942316217,-500.0,0.00056438,120]
[312526520,1705942316226,-853.26,0.00056438,120]
[312526521,1705942316236,-557.25,0.00056438,120]
[312526522,1705942316246,-547.35,0.00056438,120]
[312526523,1705942316255,-4920.11,0.00056438,120]
[312526524,1705942316265,-500.0,0.00056438,120]
[312526525,1705942316275,-872.89,0.00056438,120]
[312526526,1705942316285,-936.9,0.00056438,120]
[312526527,1705942316295,-500.0,0.00056438,120]
[312526528,1705942316304,-613.62,0.00056438,120]
[312526529,1705942316314,-573.26,0.00056438,120]
[312526530,1705942316323,-500.0,0.00056438,120]
[312526531,1705942316332,-568.85,0.00056438,120]
[312526532,1705942316342,-500.0,0.00056438,120]
[312526533,1705942316351,-2055.2,0.00056438,120]
[312526534,1705942316361,-1090.04,0.00056438,120]
[312526535,1705942316370,-1584.68,0.00056438,120]
[312526536,1705942316379,-1225.33,0.00056438,120]
[312526537,1705942316389,-500.0,0.00056438,120]
[312526538,1705942316398,-812.84,0.00056438,120]
[312526539,1705942316409,-9707.12,0.00056438,120]
[312526540,1705942316418,-1954.82,0.00056438,120]
[312526541,1705942316428,-990.92,0.00056438,120]
[312526542,1705942316438,-731.34,0.00056438,120]
[312526543,1705942316447,-660.76,0.00056438,120]
[312526544,1705942316456,-500.0,0.00056438,120]
[312526545,1705942316465,-500.0,0.00056438,120]
[312526546,1705942316475,-903.89,0.00056438,120]
[312526547,1705942316486,-875.43,0.00056438,120]
[312526548,1705942316495,-1374.95,0.00056438,120]
[312526549,1705942316505,-500.0,0.00056438,120]
[312526550,1705942316518,-662.41,0.00056438,120]
[312526551,1705942316529,-500.0,0.00056438,120]
[312526552,1705942316538,-959.86,0.00056438,120]
[312526553,1705942316547,-500.0,0.00056438,120]
[312526554,1705942316556,-543.78,0.00056438,120]
[312526555,1705942316566,-500.0,0.00056438,120]
[312526556,1705942316575,-514.24,0.00056438,10]
[312526557,1705942316585,-500.0,0.00056438,120]
[312526558,1705942316595,-723.5,0.00056438,120]
[312526559,1705942316604,-680.76,0.00056438,120]
[312526560,1705942316614,-767.63,0.00056438,120]
[312526561,1705942316624,-699.54,0.00056438,120]
[312526562,1705942316633,-1748.34,0.00056438,120]
[312526563,1705942316643,-780.8,0.00056438,120]
[312526564,1705942316655,-500.0,0.00056438,120]
[312526565,1705942316665,-500.0,0.00056438,120]
[312526566,1705942316674,-674.41,0.00056438,120]
[312526567,1705942316684,-526.37,0.00056438,2]
[312526568,1705942316694,-795.91,0.00056438,120]
[312526569,1705942316703,-667.0,0.00056438,120]
[312526570,1705942316713,-500.0,0.00056438,120]
[312526571,1705942316722,-669.33,0.00056438,120]
[312526572,1705942316732,-568.69,0.00056438,120]
[312526573,1705942316741,-2117.65,0.00056438,120]
[312526574,1705942316752,-1000.0,0.00056438,2]
[312526575,1705942316762,-607.89,0.00056438,120]
[312526576,1705942316771,-500.0,0.00056438,120]
[312526577,1705942316780,-968.34,0.00056438,120]
[312526578,1705942316791,-554.18,0.00056438,120]
[312526579,1705942316800,-500.0,0.00056438,120]
[312526580,1705942316809,-779.2,0.00056438,120]
[312526581,1705942316820,-917.47,0.00056438,120]
[312526582,1705942316829,-663.62,0.00056438,120]
[312526583,1705942316838,-931.15,0.00056438,120]
[312526584,1705942316847,-500.0,0.00056438,120]
[312526585,1705942316857,-500.0,0.00056438,120]
[312526586,1705942316867,-500.0,0.00056438,120]
[312526587,1705942316877,-500.0,0.00056438,120]
[312526588,1705942316886,-674.69,0.00056438,120]
[312526589,1705942316896,-500.0,0.00056438,120]
[312526590,1705942316909,-7567.95,0.00056438,5]
[312526591,1705942316918,-1123.98,0.00056438,120]
[312526592,1705942316928,-1147.57,0.00056438,120]
[312526593,1705942316938,-984.05,0.00056438,120]
[312526594,1705942316947,-1203.54,0.00056438,120]
[312526595,1705942316957,-1141.4,0.00056438,120]
[312526596,1705942316966,-3747.78,0.00056438,120]
[312526597,1705942316975,-845.71,0.00056438,120]
[312526598,1705942316986,-500.0,0.00056438,120]
[312526599,1705942316995,-566.43,0.00056438,120]
[312526600,1705942317005,-500.0,0.00056438,120]
[312526601,1705942317015,-700.95,0.00056438,120]
[312526602,1705942317024,-500.0,0.00056438,120]
[312526603,1705942317034,-665.32,0.00056438,120]
[312526604,1705942317044,-1493.6,0.00056438,120]
[312526605,1705942317054,-2461.03,0.00056438,120]
[312526606,1705942317063,-500.0,0.00056438,120]
[312526607,1705942317072,-500.0,0.00056438,120]
[312526608,1705942317082,-902.4,0.00056438,120]
[312526609,1705942317091,-1453.38,0.00056438,120]
[312526610,1705942317100,-5152.1,0.00056438,120]
[312526611,1705942317109,-1243.93,0.00056438,120]
[312526612,1705942317118,-1208.07,0.00056438,120]
[312526613,1705942317127,-151.0,0.00056438,120]
[312526614,1705942317136,-151.0,0.00056438,120]
[312526615,1705942317146,-181.426524,0.00056438,120]
[312526616,1705942317161,-181.426524,0.00056438,120]
[312526617,1705942317170,-151.0,0.00056438,120]
[312526618,1705942317180,-150.0,0.00056463,21]
[312526619,1705942317189,-150.0,0.00056463,21]
[312526620,1705942317199,-304.4094531,0.00056496,30]
[312526621,1705942317211,-213.80276045,0.00056496,30]
[312526622,1705942317220,-1318.77518896,0.000565,15]
[312526623,1705942317231,-156.92658812,0.00056517,120]
[312526624,1705942317241,-638.41089835,0.00056539,120]
[312526625,1705942317250,-350.0,0.00056575,120]
[312526626,1705942317260,-159.77004058,0.00056579,120]
[312526627,1705942317269,-154.41498721,0.00056621,120]
[312526628,1705942317279,-3038.2,0.00056686,117]
[312526629,1705942317288,-500.0,0.00056712,30]
[312526630,1705942317298,-500.0,0.00056712,7]
[312526631,1705942317307,-969.16,0.00056712,120]
[312526632,1705942317317,-12581.11,0.00056712,120]
[312526633,1705942317326,-768.74,0.00056712,120]
[312526634,1705942317336,-500.0,0.00056712,120]
[312526635,1705942317356,-761.66,0.00056712,120]
[312526636,1705942317367,-579.81,0.00056712,120]
[312526637,1705942317377,-500.0,0.00056712,120]
[312526638,1705942317386,-500.0,0.00056712,120]
[312526639,1705942317396,-500.0,0.00056712,120]
[312526640,1705942317411,-500.0,0.00056712,120]
[312526641,1705942317422,-500.0,0.00056712,120]
[312526642,1705942317432,-500.0,0.00056712,120]
[312526643,1705942317442,-500.0,0.00056712,120]
[312526644,1705942317452,-665.43,0.00056712,120]
[312526645,1705942317463,-719.77,0.00056712,120]
[312526646,1705942317473,-500.0,0.00056712,120]
[312526647,1705942317489,-807.38,0.00056712,120]
[312526648,1705942317499,-501.06,0.00056712,120]
[312526649,1705942317509,-500.0,0.00056712,120]
[312526650,1705942317520,-526.33674693,0.00056712,120]
[312526651,1705942317533,-500.0,0.00056712,120]
[312526652,1705942317543,-500.0,0.00056712,120]
[312526653,1705942317554,-614.6,0.00056712,120]
[312526654,1705942317566,-500.0,0.00056712,120]
[312526655,1705942317576,-323.15934455,0.00056712,120]
[312526656,1705942317587,-673.42,0.00056712,120]
[312526657,1705942317598,-575.84,0.00056712,120]
[312526658,1705942317609,-500.0,0.00056712,120]
[312526659,1705942317620,-616.04,0.00056712,120]
[312526660,1705942317630,-810.82,0.00056712,120]
[312526661,1705942317640,-500.0,0.00056712,120]
[312526662,1705942317652,-500.0,0.00056712,120]
[312526663,1705942317661,-659.18,0.00056712,2]
[312526664,1705942317671,-568.29,0.00056712,120]
[312526665,1705942317680,-532.71214388,0.00056712,120]
[312526666,1705942317689,-526.10130839,0.00056712,120]
[312526667,1705942317699,-500.0,0.00056712,120]
[312526668,1705942317710,-543.82,0.00056712,120]
[312526669,1705942317720,-589.84,0.00056712,120]
[312526670,1705942317731,-500.0,0.00056712,2]
[312526671,1705942317741,-500.0,0.00056712,120]
[312526672,1705942317752,-500.0,0.00056712,120]
[312526673,1705942317762,-500.0,0.00056712,120]
[312526674,1705942317772,-618.43,0.00056712,120]